[Event "Early-Titled-Tuesday-Blitz-August-29-2023"]
[Site "Chess.com"]
[Date "2023.08.29"]
[Round "11"]
[White "BrandonJacobson"]
[Black "FREDERICKtheMATE"]
[Result "1/2-1/2"]
[WhiteElo "3009"]
[BlackElo "2548"]
[TimeControl "180+1"]
[EndTime "10:05:08 PDT"]
[Termination "Game drawn by 50-move rule"]

1. d4 {[%clk 0:03:00.9]} 1... Nf6 {[%clk 0:02:59.6]} 2. c4 {[%clk 0:03:01.4]}
2... e6 {[%clk 0:03:00.2]} 3. Nf3 {[%clk 0:03:01.1]} 3... d5 {[%clk 0:03:00.5]}
4. g3 {[%clk 0:03:01.7]} 4... dxc4 {[%clk 0:03:00.1]} 5. Bg2 {[%clk 0:03:02.2]}
5... c5 {[%clk 0:03:00.7]} 6. O-O {[%clk 0:03:00.5]} 6... Nc6 {[%clk 0:03:00.9]}
7. dxc5 {[%clk 0:03:01.1]} 7... Qxd1 {[%clk 0:03:00.2]} 8. Rxd1 {[%clk 0:03:02]}
8... Bxc5 {[%clk 0:03:00.1]} 9. Nfd2 {[%clk 0:03:02.7]} 9... Na5 {[%clk
0:02:56.8]} 10. Na3 {[%clk 0:03:02.8]} 10... Bxa3 {[%clk 0:02:50.9]} 11. bxa3
{[%clk 0:03:03.7]} 11... Bd7 {[%clk 0:02:50.8]} 12. Bb2 {[%clk 0:03:04.1]} 12...
Bc6 {[%clk 0:02:50.7]} 13. Bc3 {[%clk 0:02:46.1]} 13... Bxg2 {[%clk 0:02:48.6]}
14. Kxg2 {[%clk 0:02:46.5]} 14... Nc6 {[%clk 0:02:47.9]} 15. Nxc4 {[%clk
0:02:45.1]} 15... Ke7 {[%clk 0:02:48.3]} 16. Nd6 {[%clk 0:01:42.1]} 16... Nd5
{[%clk 0:02:43.8]} 17. Nf5+ {[%clk 0:01:42.3]} 17... exf5 {[%clk 0:02:42]} 18.
Rxd5 {[%clk 0:01:42.4]} 18... Ke6 {[%clk 0:02:39.3]} 19. Rad1 {[%clk 0:01:42.1]}
19... Rhd8 {[%clk 0:02:24.8]} 20. Rxd8 {[%clk 0:01:40.9]} 20... Rxd8 {[%clk
0:02:25.7]} 21. Rxd8 {[%clk 0:01:41.4]} 21... Nxd8 {[%clk 0:02:26.3]} 22. Bxg7
{[%clk 0:01:42.1]} 22... Kd5 {[%clk 0:02:26.6]} 23. Kf3 {[%clk 0:01:24.7]} 23...
Ne6 {[%clk 0:02:26.1]} 24. Bf6 {[%clk 0:01:25.2]} 24... h5 {[%clk 0:02:22.9]}
25. h3 {[%clk 0:01:25.5]} 25... b5 {[%clk 0:02:22.6]} 26. g4 {[%clk 0:01:22]}
26... hxg4+ {[%clk 0:02:22.1]} 27. hxg4 {[%clk 0:01:22.9]} 27... fxg4+ {[%clk
0:02:22.5]} 28. Kxg4 {[%clk 0:01:23.8]} 28... Nc7 {[%clk 0:02:19.2]} 29. Kf5
{[%clk 0:01:19.9]} 29... Ne8 {[%clk 0:02:08.6]} 30. Bd8 {[%clk 0:00:55.2]} 30...
Nd6+ {[%clk 0:02:03.6]} 31. Kf4 {[%clk 0:00:53]} 31... Ke6 {[%clk 0:02:03.6]}
32. Ba5 {[%clk 0:00:49.8]} 32... Nc4 {[%clk 0:02:03.6]} 33. Bb4 {[%clk
0:00:49.4]} 33... a5 {[%clk 0:02:03.8]} 34. Bf8 {[%clk 0:00:49.2]} 34... Ne5
{[%clk 0:01:51.8]} 35. Ke4 {[%clk 0:00:45.4]} 35... Nc6 {[%clk 0:01:51.4]} 36.
Bg7 {[%clk 0:00:36.4]} 36... f5+ {[%clk 0:01:48.9]} 37. Kf4 {[%clk 0:00:36.9]}
37... a4 {[%clk 0:01:30.8]} 38. Bc3 {[%clk 0:00:30.7]} 38... Ne7 {[%clk
0:01:30.3]} 39. e4 {[%clk 0:00:24.8]} 39... fxe4 {[%clk 0:01:30.2]} 40. Kxe4
{[%clk 0:00:25.5]} 40... Nf5 {[%clk 0:01:30.2]} 41. Bb4 {[%clk 0:00:22.6]} 41...
Nh6 {[%clk 0:01:15.3]} 42. Kd4 {[%clk 0:00:14.4]} 42... Ng4 {[%clk 0:01:13.7]}
43. f3 {[%clk 0:00:11.6]} 43... Ne5 {[%clk 0:01:10.6]} 44. Ke4 {[%clk
0:00:11.2]} 44... Nc6 {[%clk 0:01:08.3]} 45. f4 {[%clk 0:00:09.8]} 45... Nd8
{[%clk 0:00:58.1]} 46. f5+ {[%clk 0:00:09.5]} 46... Kf6 {[%clk 0:00:56.9]} 47.
Bc3+ {[%clk 0:00:09.8]} 47... Kg5 {[%clk 0:00:57.1]} 48. Ke5 {[%clk 0:00:08.2]}
48... Nf7+ {[%clk 0:00:56.8]} 49. Ke6 {[%clk 0:00:08.5]} 49... Nd8+ {[%clk
0:00:56.1]} 50. Kd7 {[%clk 0:00:07.6]} 50... Nf7 {[%clk 0:00:52.7]} 51. Ke7
{[%clk 0:00:02.9]} 51... Nh6 {[%clk 0:00:40.5]} 52. Bd2+ {[%clk 0:00:03.2]}
52... Kxf5 {[%clk 0:00:39.7]} 53. Bxh6 {[%clk 0:00:03.9]} 53... Ke5 {[%clk
0:00:40.3]} 54. Kd7 {[%clk 0:00:04]} 54... Kd5 {[%clk 0:00:41.1]} 55. Be3 {[%clk
0:00:02.5]} 55... Ke4 {[%clk 0:00:39.5]} 56. Bc5 {[%clk 0:00:02.5]} 56... Kd5
{[%clk 0:00:39.9]} 57. Bb4 {[%clk 0:00:02.8]} 57... Kd4 {[%clk 0:00:39]} 58. Kc6
{[%clk 0:00:03]} 58... Kc4 {[%clk 0:00:39.9]} 59. Kb6 {[%clk 0:00:03]} 59... Kd4
{[%clk 0:00:40.3]} 60. Kxb5 {[%clk 0:00:03.2]} 60... Kd5 {[%clk 0:00:41]} 61.
Bc5 {[%clk 0:00:03.8]} 61... Ke6 {[%clk 0:00:40.8]} 62. Kc6 {[%clk 0:00:04.4]}
62... Ke5 {[%clk 0:00:40.3]} 63. Bd6+ {[%clk 0:00:04.8]} 63... Ke6 {[%clk
0:00:40.5]} 64. Bg3 {[%clk 0:00:04.6]} 64... Ke7 {[%clk 0:00:40.3]} 65. Bh4+
{[%clk 0:00:04.3]} 65... Ke6 {[%clk 0:00:40.7]} 66. Kc7 {[%clk 0:00:04.5]} 66...
Kd5 {[%clk 0:00:40.6]} 67. Kd7 {[%clk 0:00:04.8]} 67... Kc5 {[%clk 0:00:40.6]}
68. Bd8 {[%clk 0:00:05.1]} 68... Kb5 {[%clk 0:00:40.2]} 69. Kd6 {[%clk
0:00:03.8]} 69... Ka6 {[%clk 0:00:39.6]} 70. Kc6 {[%clk 0:00:02.4]} 70... Ka7
{[%clk 0:00:39.9]} 71. Be7 {[%clk 0:00:03]} 71... Ka8 {[%clk 0:00:40.4]} 72. Bd6
{[%clk 0:00:03.9]} 72... Ka7 {[%clk 0:00:40.5]} 73. Bc5+ {[%clk 0:00:04.8]}
73... Ka8 {[%clk 0:00:41]} 74. Bb6 {[%clk 0:00:05.7]} 74... Kb8 {[%clk
0:00:41.2]} 75. Kb5 {[%clk 0:00:06.6]} 75... Ka8 {[%clk 0:00:41.7]} 76. Be3
{[%clk 0:00:07.5]} 76... Kb8 {[%clk 0:00:42.2]} 77. Bd2 {[%clk 0:00:07]} 77...
Ka8 {[%clk 0:00:42.7]} 78. Be1 {[%clk 0:00:07.8]} 78... Kb8 {[%clk 0:00:43.1]}
79. Bh4 {[%clk 0:00:08.7]} 79... Ka8 {[%clk 0:00:43.7]} 80. Bf6 {[%clk
0:00:09.5]} 80... Kb8 {[%clk 0:00:44.2]} 81. Be5+ {[%clk 0:00:09]} 81... Ka8
{[%clk 0:00:45.1]} 82. Kc6 {[%clk 0:00:09.8]} 82... Ka7 {[%clk 0:00:45.4]} 83.
Bd6 {[%clk 0:00:09.3]} 83... Ka8 {[%clk 0:00:45.6]} 84. Bc5 {[%clk 0:00:09.8]}
84... Kb8 {[%clk 0:00:46.1]} 85. Kd7 {[%clk 0:00:10]} 85... Ka8 {[%clk
0:00:46.5]} 86. Bb6 {[%clk 0:00:10]} 86... Kb8 {[%clk 0:00:46.8]} 87. Ba5 {[%clk
0:00:10.9]} 87... Ka8 {[%clk 0:00:47.3]} 88. Kc7 {[%clk 0:00:11.1]} 88... Ka7
{[%clk 0:00:47.4]} 89. Bb4 {[%clk 0:00:11.8]} 89... Ka8 {[%clk 0:00:47.8]} 90.
Kb6 {[%clk 0:00:12.2]} 90... Kb8 {[%clk 0:00:47.9]} 91. Bd6+ {[%clk 0:00:12.3]}
91... Ka8 {[%clk 0:00:48.4]} 92. Be7 {[%clk 0:00:12.5]} 92... Kb8 {[%clk
0:00:47.5]} 93. Kc6 {[%clk 0:00:09.1]} 93... Ka8 {[%clk 0:00:48]} 94. Kc7 {[%clk
0:00:09.6]} 94... Ka7 {[%clk 0:00:48.1]} 95. Bb4 {[%clk 0:00:10.5]} 95... Ka8
{[%clk 0:00:48.5]} 96. Kc6 {[%clk 0:00:11.4]} 96... Kb8 {[%clk 0:00:48.5]} 97.
Bc5 {[%clk 0:00:12.3]} 97... Ka8 {[%clk 0:00:49]} 98. Bd6 {[%clk 0:00:13.2]}
98... Ka7 {[%clk 0:00:49.3]} 99. Kb5 {[%clk 0:00:14.1]} 99... Ka8 {[%clk
0:00:49.5]} 100. Be5 {[%clk 0:00:14.6]} 100... Ka7 {[%clk 0:00:49.6]} 101. Bd4+
{[%clk 0:00:15.5]} 101... Ka8 {[%clk 0:00:50.1]} 102. Bb6 {[%clk 0:00:16]}
102... Kb8 {[%clk 0:00:50.6]} 103. Be3 {[%clk 0:00:16.8]} 103... Ka8 {[%clk
0:00:51.3]} 104. Kc6 {[%clk 0:00:16.4]} 104... Kb8 {[%clk 0:00:51.5]} 105. Bd4
{[%clk 0:00:16.4]} 105... Ka8 {[%clk 0:00:52]} 106. Bc3 {[%clk 0:00:17.3]}
106... Kb8 {[%clk 0:00:52.4]} 107. Bb4 {[%clk 0:00:18]} 107... Ka8 {[%clk
0:00:52.9]} 108. Kc7 {[%clk 0:00:18.9]} 108... Ka7 {[%clk 0:00:53.1]} 109. Bc5+
{[%clk 0:00:19.8]} 109... Ka8 {[%clk 0:00:53.5]} 110. Bd6 {[%clk 0:00:20.7]}
1/2-1/2

[Event "Early-Titled-Tuesday-Blitz-August-29-2023"]
[Site "Chess.com"]
[Date "2023.08.29"]
[Round "11"]
[White "amintabatabaei"]
[Black "mishanick"]
[Result "0-1"]
[WhiteElo "2976"]
[BlackElo "3138"]
[TimeControl "180+1"]
[EndTime "10:05:11 PDT"]
[Termination "mishanick won by resignation"]

1. c4 {[%clk 0:03:00.9]} 1... e6 {[%clk 0:03:00]} 2. g3 {[%clk 0:02:59.1]} 2...
d5 {[%clk 0:03:00.8]} 3. Bg2 {[%clk 0:02:59.7]} 3... Nf6 {[%clk 0:03:01.5]} 4.
Nf3 {[%clk 0:03:00.1]} 4... Be7 {[%clk 0:03:01.5]} 5. d4 {[%clk 0:03:00.1]} 5...
O-O {[%clk 0:03:01.3]} 6. O-O {[%clk 0:03:00.8]} 6... dxc4 {[%clk 0:03:02.1]} 7.
Qc2 {[%clk 0:03:00.9]} 7... a6 {[%clk 0:03:02.1]} 8. a4 {[%clk 0:03:00.2]} 8...
Bd7 {[%clk 0:03:02.7]} 9. Qxc4 {[%clk 0:03:00]} 9... b5 {[%clk 0:03:03.3]} 10.
Qc2 {[%clk 0:02:57]} 10... Nc6 {[%clk 0:03:03.5]} 11. Bd2 {[%clk 0:02:57.4]}
11... Nd5 {[%clk 0:03:03.6]} 12. axb5 {[%clk 0:02:36.4]} 12... Ncb4 {[%clk
0:02:43.8]} 13. Bxb4 {[%clk 0:02:35.3]} 13... Nxb4 {[%clk 0:02:42.8]} 14. Qd2
{[%clk 0:02:33]} 14... Bxb5 {[%clk 0:02:42.5]} 15. Ne5 {[%clk 0:02:28.4]} 15...
Rb8 {[%clk 0:02:38]} 16. Nc3 {[%clk 0:02:28.7]} 16... c5 {[%clk 0:02:35.8]} 17.
Nxb5 {[%clk 0:02:17.9]} 17... Rxb5 {[%clk 0:02:34.2]} 18. Nc6 {[%clk 0:01:29.1]}
18... Nxc6 {[%clk 0:02:33.4]} 19. Bxc6 {[%clk 0:01:29.7]} 19... Rb6 {[%clk
0:02:29.6]} 20. Be4 {[%clk 0:01:22.4]} 20... cxd4 {[%clk 0:02:27.3]} 21. Bd3
{[%clk 0:01:19.4]} 21... Bb4 {[%clk 0:02:23.6]} 22. Qf4 {[%clk 0:01:18]} 22...
a5 {[%clk 0:02:22.9]} 23. Rfc1 {[%clk 0:01:18]} 23... Qd5 {[%clk 0:02:15.3]} 24.
Rc4 {[%clk 0:01:10.4]} 24... e5 {[%clk 0:01:50.9]} 25. Qh4 {[%clk 0:01:10.5]}
25... g6 {[%clk 0:01:50]} 26. Rac1 {[%clk 0:01:07.6]} 26... Bd6 {[%clk 0:01:39]}
27. R1c2 {[%clk 0:01:07.8]} 27... Qb7 {[%clk 0:01:29.2]} 28. Be4 {[%clk
0:00:57.5]} 28... Qd7 {[%clk 0:01:25.2]} 29. Qf6 {[%clk 0:00:47.9]} 29... Qd8
{[%clk 0:00:49.6]} 30. Qf3 {[%clk 0:00:45.5]} 30... f5 {[%clk 0:00:47.7]} 31.
Bd5+ {[%clk 0:00:45.1]} 31... Kh8 {[%clk 0:00:48.3]} 32. Qd3 {[%clk 0:00:27.8]}
32... Bb4 {[%clk 0:00:42.8]} 33. Rc6 {[%clk 0:00:24]} 33... Rxc6 {[%clk
0:00:39.2]} 34. Bxc6 {[%clk 0:00:24.9]} 34... e4 {[%clk 0:00:39.2]} 35. Qb5
{[%clk 0:00:25.7]} 35... d3 {[%clk 0:00:34.7]} 36. exd3 {[%clk 0:00:23.6]} 36...
exd3 {[%clk 0:00:35.6]} 37. Rc1 {[%clk 0:00:22.6]} 37... d2 {[%clk 0:00:35.6]}
38. Rd1 {[%clk 0:00:23.1]} 38... Qd4 {[%clk 0:00:34.7]} 39. b3 {[%clk
0:00:17.5]} 39... Rf7 {[%clk 0:00:27]} 40. Kg2 {[%clk 0:00:16.8]} 40... Re7
{[%clk 0:00:26.2]} 41. Bf3 {[%clk 0:00:16.9]} 41... Kg7 {[%clk 0:00:25.6]} 42.
h4 {[%clk 0:00:11.7]} 42... h5 {[%clk 0:00:24.9]} 43. Qa4 {[%clk 0:00:08.8]}
43... Re1 {[%clk 0:00:23.1]} 44. Qc6 {[%clk 0:00:01.6]} 44... Qd3 {[%clk
0:00:15.6]} 45. Qc7+ {[%clk 0:00:01.5]} 45... Re7 {[%clk 0:00:14.9]} 46. Qf4
{[%clk 0:00:02]} 46... Qc3 {[%clk 0:00:12.4]} 47. Qc4 {[%clk 0:00:02.1]} 47...
Qxc4 {[%clk 0:00:11]} 48. bxc4 {[%clk 0:00:03]} 48... Re1 {[%clk 0:00:08.5]} 49.
c5 {[%clk 0:00:01.1]} 49... Rxd1 {[%clk 0:00:08.8]} 50. Bxd1 {[%clk 0:00:01.1]}
50... Bxc5 {[%clk 0:00:09.5]} 51. Kf3 {[%clk 0:00:01.9]} 51... Kf6 {[%clk
0:00:10]} 52. Ke2 {[%clk 0:00:02.5]} 52... Ke7 {[%clk 0:00:09.3]} 53. f3 {[%clk
0:00:01.7]} 53... Bd6 {[%clk 0:00:08]} 54. g4 {[%clk 0:00:01.5]} 54... Bf4
{[%clk 0:00:04.2]} 55. gxh5 {[%clk 0:00:01.5]} 55... gxh5 {[%clk 0:00:05.1]} 56.
Bc2 {[%clk 0:00:01.6]} 56... Kf6 {[%clk 0:00:05.6]} 57. Kd1 {[%clk 0:00:02.1]}
57... Ke5 {[%clk 0:00:05.9]} 58. Ke2 {[%clk 0:00:02.4]} 58... Bh6 {[%clk
0:00:05.9]} 59. Kd1 {[%clk 0:00:01.8]} 59... Be3 {[%clk 0:00:06.2]} 60. Ke2
{[%clk 0:00:02.4]} 60... Kf4 {[%clk 0:00:05.7]} 61. Bd1 {[%clk 0:00:01.5]} 61...
Bc5 {[%clk 0:00:04.1]} 62. Bc2 {[%clk 0:00:02]} 62... Be7 {[%clk 0:00:04.5]} 63.
Kxd2 {[%clk 0:00:02]} 63... Bxh4 {[%clk 0:00:05.2]} 64. Ke2 {[%clk 0:00:02.4]}
64... Be7 {[%clk 0:00:05.4]} 65. Kf2 {[%clk 0:00:02.9]} 65... h4 {[%clk
0:00:04.5]} 66. Kg2 {[%clk 0:00:03.5]} 66... Kg5 {[%clk 0:00:03.8]} 67. Kh3
{[%clk 0:00:03.5]} 67... Bd6 {[%clk 0:00:04.1]} 68. Bb3 {[%clk 0:00:03.1]} 68...
Bg3 {[%clk 0:00:04.5]} 69. Bc2 {[%clk 0:00:03.7]} 69... f4 {[%clk 0:00:04.7]}
70. Kg2 {[%clk 0:00:02.7]} 70... Kf6 {[%clk 0:00:05.4]} 71. Kh3 {[%clk
0:00:02.5]} 71... Ke5 {[%clk 0:00:06.3]} 72. Kg4 {[%clk 0:00:02.2]} 72... Kd4
{[%clk 0:00:07.2]} 0-1

[Event "Early-Titled-Tuesday-Blitz-August-29-2023"]
[Site "Chess.com"]
[Date "2023.08.29"]
[Round "11"]
[White "Bauman_Guy"]
[Black "DanielNaroditsky"]
[Result "1-0"]
[WhiteElo "2845"]
[BlackElo "3120"]
[TimeControl "180+1"]
[EndTime "10:05:20 PDT"]
[Termination "Bauman_Guy won by checkmate"]

1. e4 {[%clk 0:03:00.9]} 1... Nf6 {[%clk 0:03:00.2]} 2. e5 {[%clk 0:03:00.9]}
2... Nd5 {[%clk 0:03:00.8]} 3. d4 {[%clk 0:03:01.4]} 3... d6 {[%clk 0:03:01.3]}
4. Bc4 {[%clk 0:03:01.9]} 4... Nb6 {[%clk 0:02:59.4]} 5. Bb3 {[%clk 0:03:02.1]}
5... dxe5 {[%clk 0:02:56.3]} 6. Qh5 {[%clk 0:03:01.9]} 6... e6 {[%clk
0:02:53.4]} 7. dxe5 {[%clk 0:03:01.8]} 7... Nc6 {[%clk 0:02:51.3]} 8. Nf3 {[%clk
0:02:59.9]} 8... g6 {[%clk 0:02:51.1]} 9. Qg4 {[%clk 0:02:59.2]} 9... h5 {[%clk
0:02:49.4]} 10. Qg3 {[%clk 0:02:58.7]} 10... Nd4 {[%clk 0:02:43.3]} 11. Nc3
{[%clk 0:02:34.9]} 11... Nf5 {[%clk 0:02:32.3]} 12. Qh3 {[%clk 0:02:30.3]} 12...
Bd7 {[%clk 0:02:30.9]} 13. Bg5 {[%clk 0:02:27.9]} 13... Be7 {[%clk 0:02:30.1]}
14. Ne4 {[%clk 0:02:25.6]} 14... Bc6 {[%clk 0:02:29.9]} 15. Nf6+ {[%clk
0:02:16.2]} 15... Kf8 {[%clk 0:02:27]} 16. Rd1 {[%clk 0:02:15.5]} 16... Qc8
{[%clk 0:02:16]} 17. g4 {[%clk 0:02:03.1]} 17... Ng7 {[%clk 0:02:15.5]} 18. O-O
{[%clk 0:02:00.8]} 18... Nd7 {[%clk 0:02:15.2]} 19. Nxd7+ {[%clk 0:01:37.5]}
19... Bxd7 {[%clk 0:02:15.3]} 20. Bxe7+ {[%clk 0:01:37.9]} 20... Kxe7 {[%clk
0:02:16.2]} 21. Qh4+ {[%clk 0:01:38.3]} 21... Kf8 {[%clk 0:02:16.2]} 22. Qf6
{[%clk 0:01:32.9]} 22... Qe8 {[%clk 0:01:57.7]} 23. Ng5 {[%clk 0:01:18.1]} 23...
hxg4 {[%clk 0:01:23.5]} 24. Nxf7 {[%clk 0:01:09.9]} 24... Qxf7 {[%clk
0:01:21.4]} 25. Rxd7 {[%clk 0:01:02.2]} 25... Qxf6 {[%clk 0:01:21.6]} 26. exf6
{[%clk 0:01:03.1]} 26... Ne8 {[%clk 0:01:15.4]} 27. Bxe6 {[%clk 0:00:59.9]}
27... Nd6 {[%clk 0:01:16.2]} 28. Bxg4 {[%clk 0:00:47.7]} 28... Ne4 {[%clk
0:01:07.7]} 29. Rxc7 {[%clk 0:00:37.1]} 29... Nxf6 {[%clk 0:01:08.1]} 30. Bf3
{[%clk 0:00:37.1]} 30... Re8 {[%clk 0:01:05.3]} 31. Rxb7 {[%clk 0:00:36.5]}
31... a5 {[%clk 0:01:03.6]} 32. Rd1 {[%clk 0:00:36.7]} 32... Rh4 {[%clk
0:01:01.5]} 33. Kg2 {[%clk 0:00:33.6]} 33... Rf4 {[%clk 0:01:01.9]} 34. Rd6
{[%clk 0:00:31.3]} 34... Rf5 {[%clk 0:01:02.2]} 35. a3 {[%clk 0:00:30]} 35...
Re1 {[%clk 0:01:00]} 36. Rd8+ {[%clk 0:00:29]} 36... Re8 {[%clk 0:00:58.9]} 37.
Rxe8+ {[%clk 0:00:29.1]} 37... Nxe8 {[%clk 0:00:59.7]} 38. b4 {[%clk 0:00:28.2]}
38... axb4 {[%clk 0:01:00.6]} 39. axb4 {[%clk 0:00:29.1]} 39... Nd6 {[%clk
0:01:01.5]} 40. Rb6 {[%clk 0:00:29.3]} 40... Ke7 {[%clk 0:01:01.4]} 41. Rc6
{[%clk 0:00:29.4]} 41... Rg5+ {[%clk 0:01:01.5]} 42. Kf1 {[%clk 0:00:28]} 42...
Rf5 {[%clk 0:01:02.4]} 43. Bg2 {[%clk 0:00:28.1]} 43... Rf4 {[%clk 0:01:01.9]}
44. c3 {[%clk 0:00:27.7]} 44... Nf5 {[%clk 0:01:01.8]} 45. Ke2 {[%clk
0:00:26.3]} 45... Kd7 {[%clk 0:00:59.7]} 46. Rc5 {[%clk 0:00:26.2]} 46... Kd6
{[%clk 0:00:58.8]} 47. Rd5+ {[%clk 0:00:21.3]} 47... Ke6 {[%clk 0:00:59.3]} 48.
Rd3 {[%clk 0:00:22.2]} 48... Rh4 {[%clk 0:00:56.7]} 49. h3 {[%clk 0:00:21.4]}
49... Rh8 {[%clk 0:00:54.3]} 50. Bd5+ {[%clk 0:00:21.4]} 50... Ke5 {[%clk
0:00:54.8]} 51. Bg2 {[%clk 0:00:19.8]} 51... Rb8 {[%clk 0:00:53.7]} 52. Rd5+
{[%clk 0:00:19.4]} 52... Ke6 {[%clk 0:00:54.5]} 53. Rc5 {[%clk 0:00:19.3]} 53...
Nd6 {[%clk 0:00:52.5]} 54. Ke3 {[%clk 0:00:16.7]} 54... Nf5+ {[%clk 0:00:49.5]}
55. Kf4 {[%clk 0:00:16.9]} 55... Rf8 {[%clk 0:00:48.7]} 56. Kg5 {[%clk
0:00:16.4]} 56... Ne7 {[%clk 0:00:48.8]} 57. f4 {[%clk 0:00:16.1]} 57... Rd8
{[%clk 0:00:49.4]} 58. Re5+ {[%clk 0:00:14.9]} 58... Kf7 {[%clk 0:00:49.3]} 59.
c4 {[%clk 0:00:15.4]} 59... Rd2 {[%clk 0:00:48.8]} 60. Bd5+ {[%clk 0:00:15.6]}
60... Kf8 {[%clk 0:00:49.4]} 61. Kf6 {[%clk 0:00:15.9]} 61... Nc8 {[%clk
0:00:45.5]} 62. Kxg6 {[%clk 0:00:15.7]} 62... Rd1 {[%clk 0:00:33.6]} 63. Kf6
{[%clk 0:00:15.1]} 63... Rg1 {[%clk 0:00:27.4]} 64. Bc6 {[%clk 0:00:14.9]} 64...
Nd6 {[%clk 0:00:19.5]} 65. c5 {[%clk 0:00:15.1]} 65... Rc1 {[%clk 0:00:10.8]}
66. cxd6 {[%clk 0:00:14.9]} 66... Rxc6 {[%clk 0:00:11.5]} 67. Ke6 {[%clk
0:00:15.8]} 67... Ke8 {[%clk 0:00:11.3]} 68. Rg5 {[%clk 0:00:16.1]} 68... Kf8
{[%clk 0:00:11.1]} 69. b5 {[%clk 0:00:16.5]} 69... Rc8 {[%clk 0:00:08.9]} 70. d7
{[%clk 0:00:16.6]} 70... Rc6+ {[%clk 0:00:08.5]} 71. Kd5 {[%clk 0:00:13.5]}
71... Rd6+ {[%clk 0:00:08.9]} 72. Kc5 {[%clk 0:00:12.4]} 72... Rxd7 {[%clk
0:00:09.1]} 73. b6 {[%clk 0:00:12.9]} 73... Rd1 {[%clk 0:00:06.4]} 74. Kc6
{[%clk 0:00:13.1]} 74... Ke7 {[%clk 0:00:05.3]} 75. b7 {[%clk 0:00:13.1]} 75...
Rb1 {[%clk 0:00:05.8]} 76. Rb5 {[%clk 0:00:13]} 76... Rc1+ {[%clk 0:00:06]} 77.
Kb6 {[%clk 0:00:13.4]} 77... Kf7 {[%clk 0:00:05.3]} 78. b8=Q {[%clk 0:00:13.4]}
78... Re1 {[%clk 0:00:05.6]} 79. Qc7+ {[%clk 0:00:13.4]} 79... Re7 {[%clk
0:00:03.8]} 80. Qxe7+ {[%clk 0:00:13.4]} 80... Kg8 {[%clk 0:00:03.3]} 81. Rg5+
{[%clk 0:00:14.3]} 81... Kh8 {[%clk 0:00:03.7]} 82. Qg7# {[%clk 0:00:14.5]} 1-0